fUSD/lending_fUSD_20250106
["ID","MTS","AMOUNT","RATE_DAILY","PERIOD"]
[347909672,1736194248184,-500.0,0.0001079,2]
[347909674,1736194248194,-500.0,0.0001079,2]
[347909676,1736194248203,-500.0,0.0001079,2]
[347909678,1736194248212,-645.03,0.0001079,2]
[347909680,1736194248221,-500.0,0.0001079,2]
[347909682,1736194248231,-1067.04,0.00010821,2]
[347909684,1736194248240,-545.04,0.00010821,2]
[347909686,1736194248249,-500.0,0.00010821,2]
[347909688,1736194248258,-500.0,0.00010821,2]
[347909690,1736194248268,-500.0,0.00010821,2]
[347909692,1736194248278,-1089.83,0.00010821,2]
[347909694,1736194248287,-500.0,0.00010821,2]
[347909696,1736194248296,-710.09,0.00010821,2]
[347909698,1736194248305,-500.0,0.00010821,2]
[347909700,1736194248314,-500.0,0.00010821,2]
[347909702,1736194248324,-573.69,0.00010821,2]
[347909704,1736194248333,-659.2,0.00010821,2]
[347909706,1736194248342,-500.0,0.00010821,2]
[347909708,1736194248353,-797.14,0.00010821,2]
[347909710,1736194248363,-813.29,0.00010821,2]
[347909712,1736194248373,-500.0,0.00010821,2]
[347909714,1736194248382,-500.0,0.00010821,2]
[347909716,1736194248391,-500.0,0.00010821,2]
[347909718,1736194248401,-500.0,0.00010821,2]
[347909720,1736194248410,-2497.82,0.00010821,2]
[347909722,1736194248419,-500.0,0.00010821,2]
[347909724,1736194248429,-1131.27,0.00010821,2]
[347909726,1736194248439,-500.0,0.00010821,2]
[347909728,1736194248449,-783.53,0.00010821,2]
[347909731,1736194248459,-500.0,0.00010821,2]
[347909732,1736194248468,-1122.41,0.00010821,2]
[347909734,1736194248477,-500.0,0.00010821,2]
[347909736,1736194248487,-500.0,0.00010821,2]
[347909739,1736194248496,-627.67,0.00010821,2]
[347909741,1736194248505,-500.0,0.00010821,2]
[347909743,1736194248515,-559.8,0.00010821,2]
[347909744,1736194248524,-1712.07,0.00010821,2]
[347909747,1736194248534,-1640.73,0.00010821,2]
[347909749,1736194248546,-662.63,0.00010821,2]
[347909751,1736194248558,-500.0,0.00010821,2]
[347909753,1736194248570,-500.0,0.00010821,2]
[347909755,1736194248582,-500.0,0.00010821,2]
[347909757,1736194248591,-966.65,0.00010821,2]
[347909759,1736194248601,-500.0,0.00010821,2]
[347909761,1736194248610,-649.51,0.00010821,2]
[347909763,1736194248619,-500.0,0.00010821,2]
[347909765,1736194248631,-500.0,0.00010821,2]
[347909767,1736194248640,-1141.05,0.00010821,2]
[347909769,1736194248649,-727.151076,0.00010821,2]
[347909771,1736194248660,-1072.8,0.00010821,2]
[347909773,1736194248669,-500.0,0.00010821,2]
[347909775,1736194248681,-500.0,0.00010821,2]
[347909777,1736194248691,-500.0,0.00010821,2]
[347909778,1736194248700,-664.79916,0.00010821,2]
[347909780,1736194248709,-500.0,0.00010821,2]
[347909782,1736194248719,-982.59,0.00010821,2]
[347909784,1736194248729,-500.0,0.00010821,2]
[347909786,1736194248739,-500.0,0.00010821,2]
[347909788,1736194248750,-500.0,0.00010821,2]
[347909791,1736194248759,-1986.1,0.00010821,2]
[347909792,1736194248769,-556.38,0.00010821,2]
[347909795,1736194248778,-681.07,0.00010821,2]
[347909796,1736194248788,-648.35,0.00010821,2]
[347909798,1736194248797,-910.47285199,0.00010883,2]
[347909800,1736194248807,-500.0,0.00010895,2]
[347909802,1736194248819,-4049.43168082,0.000109,2]
[347909804,1736194248828,-2593.03902319,0.000109,2]
[347909806,1736194248837,-15143.48124983,0.000109,2]
[347909808,1736194248846,-150.0,0.00010958,2]
[347909810,1736194248856,-1798.46,0.00010958,2]
[347909812,1736194248865,-500.0,0.00010959,2]
[347909814,1736194248875,-2000.0,0.00010959,2]
[347909816,1736194248884,-200.0,0.00010959,2]
[347909819,1736194248894,-151.0,0.00010959,2]
[347909821,1736194248905,-150.0,0.00010959,2]
[347909823,1736194248915,-400.0,0.00010986,2]
[347909825,1736194248924,-2000.0,0.00010998,3]
[347909827,1736194248934,-666.0,0.00010999,2]
[347909828,1736194248943,-132273.00315627,0.00011,2]
[347909830,1736194248952,-151.0,0.00011,2]
[347909833,1736194248962,-151.0,0.00011,2]
[347909835,1736194248972,-151.0,0.00011,2]
[347909837,1736194248981,-550.0,0.00011,2]
[347909839,1736194248991,-910.47285199,0.00011017,2]
[347909859,1736194249155,-222.1,0.00011064,2]
[347909862,1736194249189,-500.0,0.00011064,2]
[347909864,1736194249200,-500.0,0.00011064,2]
[347909866,1736194249210,-645.03,0.00011064,2]
[347909868,1736194249219,-500.0,0.00011064,2]
[347909870,1736194249228,-666.0,0.00011094,2]
[347909872,1736194249238,-150.0,0.00011095,2]
[347909874,1736194249247,-1067.04,0.00011095,2]
[347909876,1736194249256,-545.04,0.00011095,2]
[347909878,1736194249266,-500.0,0.00011095,2]
[347909880,1736194249275,-500.0,0.00011095,2]
[347909882,1736194249284,-500.0,0.00011095,2]
[347909884,1736194249294,-1089.83,0.00011095,2]
[347909886,1736194249303,-500.0,0.00011095,2]
[347909888,1736194249313,-710.09,0.00011095,2]
[347909890,1736194249323,-500.0,0.00011095,2]
[347909892,1736194249333,-500.0,0.00011095,2]
[347909894,1736194249343,-573.69,0.00011095,2]
[347909896,1736194249353,-659.2,0.00011095,2]
[347909898,1736194249363,-500.0,0.00011095,2]
[347909900,1736194249373,-797.14,0.00011095,2]
[347909902,1736194249384,-813.29,0.00011095,2]
[347909904,1736194249393,-500.0,0.00011095,2]
[347909906,1736194249404,-500.0,0.00011095,2]
[347909908,1736194249413,-500.0,0.00011095,2]
[347909910,1736194249423,-500.0,0.00011095,2]
[347909912,1736194249432,-2497.82,0.00011095,2]
[347909914,1736194249441,-500.0,0.00011095,2]
[347909916,1736194249451,-1131.27,0.00011095,2]
[347909918,1736194249461,-359.34236024,0.00011095,2]
[347909920,1736194249470,-783.53,0.00011095,2]
[347909922,1736194249480,-500.0,0.00011095,2]
[347909924,1736194249489,-1122.41,0.00011095,2]
[347909926,1736194249498,-500.0,0.00011095,2]
[347909928,1736194249511,-500.0,0.00011095,2]
[347909930,1736194249522,-627.67,0.00011095,2]
[347909932,1736194249531,-500.0,0.00011095,2]
[347909934,1736194249541,-559.8,0.00011095,2]
[347909936,1736194249550,-1712.07,0.00011095,2]
[347909938,1736194249559,-1640.73,0.00011095,2]
[347909940,1736194249569,-662.63,0.00011095,2]
[347909942,1736194249579,-500.0,0.00011095,2]
[347909945,1736194249588,-500.0,0.00011095,2]
[347909947,1736194249599,-500.0,0.00011095,2]
[347909949,1736194249608,-966.65,0.00011095,2]
[347909951,1736194249617,-500.0,0.00011095,2]
[347909953,1736194249627,-649.51,0.00011095,2]
[347909954,1736194249636,-320.79,0.00011095,2]
[347909957,1736194249646,-500.0,0.00011095,2]
[347909959,1736194249657,-1141.05,0.00011095,2]
[347909961,1736194249667,-727.151076,0.00011095,2]
[347909963,1736194249676,-1072.8,0.00011095,2]
[347909965,1736194249686,-500.0,0.00011095,2]
[347909967,1736194249695,-500.0,0.00011095,2]
[347909969,1736194249705,-500.0,0.00011095,2]
[347909971,1736194249715,-664.79916,0.00011095,2]
[347909973,1736194249724,-636.76,0.00011095,2]
[347909975,1736194249734,-982.59,0.00011095,2]
[347909977,1736194249743,-500.0,0.00011095,2]
[347909979,1736194249752,-500.0,0.00011095,2]
[347909981,1736194249762,-500.0,0.00011095,2]
[347909983,1736194249771,-1986.1,0.00011095,2]
[347909985,1736194249780,-556.38,0.00011095,2]
[347909987,1736194249789,-681.07,0.00011095,2]
[347909988,1736194249799,-648.35,0.00011095,2]
[347909991,1736194249810,-910.47285199,0.00011152,2]
[347909993,1736194249821,-666.0,0.00011154,2]
[347909995,1736194249831,-24746.1644093,0.00011155,2]
[347909996,1736194249840,-414.26451708,0.00011167,2]
[347909998,1736194249850,-9398.75175082,0.00011167,2]
[347910001,1736194249860,-243.85288363,0.00011168,2]
[347910003,1736194249870,-414.26451708,0.00011168,2]
[347910005,1736194249880,-500.0,0.00011169,2]
[347910007,1736194249891,-263.19402793,0.00011169,2]
[347910009,1736194249900,-1814.0053254,0.00011169,2]
[347910011,1736194249910,-52264.88869112,0.0001117,2]
[347910013,1736194249920,-263.19402793,0.00011171,2]
[347910015,1736194249930,-9398.75175082,0.00011171,2]
[347910017,1736194249940,-414.26451708,0.00011171,2]
[347910019,1736194249949,-3372.0,0.00011171,2]
[347910020,1736194249959,-200.0,0.00011172,2]
[347910023,1736194249969,-263.19402793,0.00011172,2]
[347910025,1736194249978,-1814.0053254,0.00011173,2]
[347910026,1736194249988,-52264.88869112,0.00011174,2]
[347910029,1736194249998,-243.85288363,0.00011174,2]
[347910031,1736194250007,-3372.0,0.00011175,2]
[347910033,1736194250017,-87726.43313504,0.00011176,2]
[347910035,1736194250026,-87726.43313504,0.00011176,2]
[347910037,1736194250036,-87726.43313504,0.00011176,2]
[347910039,1736194250045,-414.26451708,0.00011176,2]
[347910041,1736194250055,-1814.0053254,0.00011176,2]
[347910042,1736194250064,-3372.0,0.00011177,2]
[347910045,1736194250074,-263.19402793,0.00011177,2]
[347910047,1736194250084,-3372.0,0.00011177,2]
[347910049,1736194250094,-87726.43313504,0.00011177,2]
[347910051,1736194250103,-1542.59130921,0.0001118,2]
[347910053,1736194250113,-414.26451708,0.00011181,2]
[347910055,1736194250121,-1814.0053254,0.00011183,2]
[347910057,1736194250130,-263.19402793,0.00011183,2]
[347910058,1736194250140,-87726.43313504,0.00011183,2]
[347910060,1736194250149,-243.85288363,0.00011184,2]
[347910063,1736194250160,-1542.59130921,0.00011184,2]
[347910064,1736194250169,-1542.59130921,0.00011187,2]
[347910067,1736194250181,-243.85288363,0.00011188,2]
[347910068,1736194250190,-52264.88869112,0.00011188,2]
[347910071,1736194250200,-414.26451708,0.00011188,2]
[347910072,1736194250209,-3372.0,0.00011191,2]
[347910074,1736194250219,-1814.0053254,0.00011191,2]
[347910076,1736194250228,-243.85288363,0.00011193,2]
[347910078,1736194250238,-52264.88869112,0.00011193,2]
[347910080,1736194250247,-263.19402793,0.00011193,2]
[347910082,1736194250256,-3372.0,0.00011194,2]
[347910084,1736194250266,-1542.59130921,0.00011194,2]
[347910086,1736194250276,-9398.75175082,0.00011194,2]
[347910088,1736194250285,-9398.75175082,0.00011195,2]
[347910090,1736194250294,-1542.59130921,0.00011195,2]
[347910092,1736194250304,-1814.0053254,0.00011196,2]
[347910094,1736194250313,-52264.88869112,0.00011196,2]
[347910096,1736194250323,-9398.75175082,0.00011197,2]
[347910099,1736194250332,-1542.59130921,0.00011197,2]
[347910101,1736194250342,-243.85288363,0.00011198,2]
[347910103,1736194250352,-87726.43313504,0.00011199,2]
[347910105,1736194250362,-52264.88869112,0.00011199,2]
[347910107,1736194250372,-9398.75175082,0.00011199,2]
[347910109,1736194250381,-229.91987405,0.00011232,2]
[347910110,1736194250391,-333.53,0.0001127,2]
[347910112,1736194250400,-910.47285199,0.00011286,2]
[347910114,1736194250410,-466.0,0.0001133,2]
[347910117,1736194250419,-285.0,0.0001133,2]
[347910118,1736194250429,-500.0,0.00011338,2]
[347910120,1736194250438,-500.0,0.00011338,2]
[347910122,1736194250447,-645.03,0.00011338,2]
[347910124,1736194250456,-500.0,0.00011338,2]
[347910126,1736194250466,-666.0,0.00011368,2]
[347910128,1736194250475,-1067.04,0.00011369,2]
[347910130,1736194250485,-545.04,0.00011369,2]
[347910132,1736194250494,-500.0,0.00011369,2]
[347910134,1736194250503,-500.0,0.00011369,2]
[347910136,1736194250512,-500.0,0.00011369,2]
[347910138,1736194250522,-1089.83,0.00011369,2]
[347910140,1736194250531,-500.0,0.00011369,2]
[347910142,1736194250541,-710.09,0.00011369,2]
[347910144,1736194250550,-500.0,0.00011369,2]
[347910146,1736194250560,-500.0,0.00011369,2]
[347910148,1736194250569,-573.69,0.00011369,2]
[347910150,1736194250578,-659.2,0.00011369,2]
[347910152,1736194250587,-500.0,0.00011369,2]
[347910154,1736194250596,-797.14,0.00011369,2]
[347910155,1736194250605,-813.29,0.00011369,2]
[347910156,1736194250614,-500.0,0.00011369,2]
[347910157,1736194250623,-500.0,0.00011369,2]
[347910158,1736194250632,-500.0,0.00011369,2]
[347910159,1736194250641,-500.0,0.00011369,2]
[347910160,1736194250651,-2497.82,0.00011369,2]
[347910161,1736194250660,-500.0,0.00011369,2]
[347910162,1736194250669,-1131.27,0.00011369,2]
[347910163,1736194250679,-783.53,0.00011369,2]
[347910164,1736194250688,-500.0,0.00011369,2]
[347910165,1736194250698,-1122.41,0.00011369,2]
[347910167,1736194250707,-500.0,0.00011369,2]
[347910169,1736194250716,-500.0,0.00011369,2]
[347910171,1736194250725,-627.67,0.00011369,2]
[347910173,1736194250734,-500.0,0.00011369,2]
[347910175,1736194250745,-559.8,0.00011369,2]
[347910177,1736194250755,-1712.07,0.00011369,2]
[347910179,1736194250763,-1640.73,0.00011369,2]
[347910181,1736194250773,-662.63,0.00011369,2]
[347910183,1736194250783,-500.0,0.00011369,2]
[347910185,1736194250794,-500.0,0.00011369,2]
[347910187,1736194250802,-500.0,0.00011369,2]
[347910189,1736194250814,-966.65,0.00011369,2]
[347910191,1736194250824,-500.0,0.00011369,2]
[347910193,1736194250832,-649.51,0.00011369,2]
[347910194,1736194250842,-500.0,0.00011369,2]
[347910195,1736194250852,-727.151076,0.00011369,2]
[347910196,1736194250861,-1141.05,0.00011369,2]
[347910197,1736194250871,-1072.8,0.00011369,2]
[347910198,1736194250881,-500.0,0.00011369,2]
[347910199,1736194250890,-644.2787052,0.00011369,2]
[347910200,1736194250900,-500.0,0.00011369,2]
[347910201,1736194250910,-664.79916,0.00011369,2]
[347910202,1736194250920,-982.59,0.00011369,2]
[347910203,1736194250929,-500.0,0.00011369,2]
[347910204,1736194250939,-500.0,0.00011369,2]
[347910205,1736194250949,-500.0,0.00011369,2]
[347910206,1736194250958,-1986.1,0.00011369,2]
[347910207,1736194250967,-556.38,0.00011369,2]
[347910208,1736194250978,-648.35,0.00011369,2]
[347910209,1736194250987,-681.07,0.00011369,2]
[347910210,1736194250996,-1000.0,0.00011371,2]
[347910211,1736194251006,-910.47285199,0.00011421,2]
[347910212,1736194251016,-500.0,0.00011443,2]
[347910213,1736194251025,-150.0,0.00011464,2]
[347910214,1736194251035,-300.0,0.00011464,2]
[347910215,1736194251045,-182.38,0.00011464,2]
[347910216,1736194251055,-910.47285199,0.00011555,2]
[347910217,1736194251064,-500.0,0.00011612,2]
[347910218,1736194251074,-500.0,0.00011612,2]
[347910219,1736194251084,-645.03,0.00011612,2]
[347910220,1736194251093,-500.0,0.00011612,2]
[347910221,1736194251102,-667.95397468,0.00011642,2]
[347910222,1736194251111,-1067.04,0.00011643,2]
[347910223,1736194251121,-545.04,0.00011643,2]
[347910224,1736194251130,-500.0,0.00011643,2]
[347910225,1736194251140,-500.0,0.00011643,2]
[347910226,1736194251151,-500.0,0.00011643,2]
[347910227,1736194251160,-1089.83,0.00011643,2]
[347910228,1736194251170,-500.0,0.00011643,2]
[347910229,1736194251180,-710.09,0.00011643,2]
[347910230,1736194251189,-500.0,0.00011643,2]
[347910231,1736194251199,-500.0,0.00011643,2]
[347910232,1736194251208,-573.69,0.00011643,2]
[347910233,1736194251219,-659.2,0.00011643,2]
[347910234,1736194251228,-500.0,0.00011643,2]
[347910235,1736194251238,-797.14,0.00011643,2]
[347910236,1736194251247,-813.29,0.00011643,2]
[347910237,1736194251256,-500.0,0.00011643,2]
[347910238,1736194251265,-500.0,0.00011643,2]
[347910239,1736194251275,-500.0,0.00011643,2]
[347910240,1736194251284,-500.0,0.00011643,2]
[347910241,1736194251293,-2497.82,0.00011643,2]
[347910242,1736194251302,-500.0,0.00011643,2]
[347910243,1736194251312,-1131.27,0.00011643,2]
[347910244,1736194251321,-783.53,0.00011643,2]
[347910245,1736194251331,-500.0,0.00011643,2]
[347910246,1736194251340,-1122.41,0.00011643,2]
[347910247,1736194251351,-532.62791344,0.00011643,2]
[347910248,1736194251361,-278.71,0.00011643,2]
[347910249,1736194251371,-627.67,0.00011643,2]
[347910250,1736194251381,-500.0,0.00011643,2]
[347910251,1736194251390,-559.8,0.00011643,2]
[347910252,1736194251399,-1640.73,0.00011643,2]
[347910253,1736194251408,-662.63,0.00011643,2]
[347910254,1736194251417,-500.0,0.00011643,2]
[347910255,1736194251427,-500.0,0.00011643,2]
[347910256,1736194251438,-500.0,0.00011643,2]
[347910257,1736194251447,-966.65,0.00011643,2]
[347910258,1736194251514,-500.0,0.00011643,2]
[347910259,1736194251523,-649.51,0.00011643,2]
[347910260,1736194251533,-500.0,0.00011643,2]
[347910261,1736194251542,-1072.8,0.00011643,2]
[347910262,1736194251551,-1141.05,0.00011643,2]
[347910263,1736194251560,-500.0,0.00011643,2]
[347910264,1736194251569,-500.0,0.00011643,2]
[347910265,1736194251579,-982.59,0.00011643,2]
[347910266,1736194251588,-500.0,0.00011643,2]
[347910267,1736194251597,-500.0,0.00011643,2]
[347910268,1736194251607,-500.0,0.00011643,2]
[347910269,1736194251615,-1986.1,0.00011643,2]
[347910270,1736194251625,-556.38,0.00011643,2]
[347910271,1736194251634,-648.35,0.00011643,2]
[347910272,1736194251643,-681.07,0.00011643,2]
[347910273,1736194251654,-2000.0,0.00011654,4]
[347910274,1736194251663,-910.47285199,0.0001169,2]
[347910275,1736194251672,-500.0,0.00011717,2]
[347910276,1736194251681,-425.83,0.00011747,2]
[347910277,1736194251690,-200.0,0.000118,2]
[347910278,1736194251699,-910.47285199,0.00011824,2]
[347910279,1736194251709,-10905.34375944,0.0001188,2]
[347910280,1736194251718,-500.0,0.00011886,2]
[347910281,1736194251727,-500.0,0.00011886,2]
[347910282,1736194251736,-645.03,0.00011886,2]
[347910283,1736194251745,-500.0,0.00011886,2]
[347910284,1736194251755,-5000.0,0.000119,2]
[347910285,1736194251765,-6820.40251413,0.000119,2]
[347910286,1736194251774,-18496.59021007,0.000119,2]
[347910287,1736194251783,-192.18930676,0.000119,2]
[347910288,1736194251793,-1067.04,0.00011917,2]
[347910289,1736194251802,-545.04,0.00011917,2]
[347910290,1736194251816,-500.0,0.00011917,2]
[347910291,1736194251825,-500.0,0.00011917,2]
[347910292,1736194251834,-500.0,0.00011917,2]
[347910293,1736194251843,-1089.83,0.00011917,2]
[347910294,1736194251853,-500.0,0.00011917,2]
[347910295,1736194251862,-710.09,0.00011917,2]
[347910296,1736194251872,-500.0,0.00011917,2]
[347910297,1736194251881,-500.0,0.00011917,2]
[347910298,1736194251891,-573.69,0.00011917,2]
[347910299,1736194251900,-659.2,0.00011917,2]
[347910300,1736194251910,-375.78655885,0.00011917,2]
[347910301,1736194251919,-797.14,0.00011917,2]
[347910302,1736194251928,-813.29,0.00011917,2]
[347910303,1736194251937,-500.0,0.00011917,2]
[347910304,1736194251946,-500.0,0.00011917,2]
[347910305,1736194251955,-500.0,0.00011917,2]
[347910306,1736194251965,-500.0,0.00011917,2]
[347910307,1736194251974,-2497.82,0.00011917,2]
[347910308,1736194251983,-500.0,0.00011917,2]
[347910309,1736194251992,-1131.27,0.00011917,2]
[347910310,1736194252001,-783.53,0.00011917,2]
[347910311,1736194252011,-500.0,0.00011917,2]
[347910312,1736194252020,-1122.41,0.00011917,2]
[347910313,1736194252029,-627.67,0.00011917,2]
[347910314,1736194252038,-500.0,0.00011917,2]
[347910315,1736194252048,-559.8,0.00011917,2]
[347910316,1736194252057,-1640.73,0.00011917,2]
[347910317,1736194252066,-662.63,0.00011917,2]
[347910318,1736194252075,-500.0,0.00011917,2]
[347910319,1736194252084,-500.0,0.00011917,2]
[347910320,1736194252093,-500.0,0.00011917,2]
[347910321,1736194252102,-966.65,0.00011917,2]
[347910322,1736194252111,-500.0,0.00011917,2]
[347910323,1736194252120,-649.51,0.00011917,2]
[347910324,1736194252129,-500.0,0.00011917,2]
[347910325,1736194252138,-1072.8,0.00011917,2]
[347910326,1736194252147,-1141.05,0.00011917,2]
[347910327,1736194252157,-500.0,0.00011917,2]
[347910328,1736194252166,-500.0,0.00011917,2]
[347910329,1736194252176,-982.59,0.00011917,2]
[347910330,1736194252185,-500.0,0.00011917,2]
[347910331,1736194252194,-500.0,0.00011917,2]
[347910332,1736194252203,-500.0,0.00011917,2]
[347910333,1736194252213,-1986.1,0.00011917,2]
[347910334,1736194252223,-556.38,0.00011917,2]
[347910335,1736194252232,-910.47285199,0.00011959,2]
[347910336,1736194252242,-144521.51777736,0.00011961,2]
[347910337,1736194252251,-79250.47378638,0.00011961,2]
[347910338,1736194252259,-151.0,0.00011961,2]
[347910339,1736194252268,-163.30617,0.00011961,2]
[347910340,1736194252277,-151.0,0.00011961,2]
[347910341,1736194252287,-500.0,0.00011991,2]
[347910342,1736194252296,-1100417.0,0.00012,2]
[347910343,1736194252305,-151.0,0.00012,2]
[347910344,1736194252314,-151.0,0.00012,2]
[347910345,1736194252323,-1443.14,0.00012,2]
[347910346,1736194252332,-31285.84709447,0.00012,6]
[347910347,1736194252341,-466.0,0.0001202,2]
[347910348,1736194252351,-285.0,0.0001202,2]
[347910349,1736194252360,-910.47285199,0.00012093,2]
[347910350,1736194252370,-4689.0,0.000121,2]
[347910351,1736194252380,-1023.99986866,0.000121,2]
[347910352,1736194252389,-500.0,0.0001216,2]
[347910353,1736194252398,-500.0,0.0001216,2]
[347910354,1736194252407,-645.03,0.0001216,2]
[347910355,1736194252416,-500.0,0.0001216,2]
[347910356,1736194252425,-1067.04,0.00012191,2]
[347910357,1736194252434,-545.04,0.00012191,2]
[347910358,1736194252443,-500.0,0.00012191,2]
[347910359,1736194252452,-500.0,0.00012191,2]
[347910360,1736194252461,-500.0,0.00012191,2]
[347910361,1736194252470,-1089.83,0.00012191,2]
[347910362,1736194252479,-500.0,0.00012191,2]
[347910363,1736194252488,-710.09,0.00012191,2]
[347910364,1736194252497,-500.0,0.00012191,2]
[347910365,1736194252506,-500.0,0.00012191,2]
[347910366,1736194252516,-573.69,0.00012191,2]
[347910367,1736194252525,-659.2,0.00012191,2]
[347910368,1736194252534,-797.14,0.00012191,2]
[347910369,1736194252544,-813.29,0.00012191,2]
[347910370,1736194252553,-500.0,0.00012191,2]
[347910371,1736194252562,-500.0,0.00012191,2]
[347910372,1736194252571,-500.0,0.00012191,2]
[347910373,1736194252581,-500.0,0.00012191,2]
[347910374,1736194252590,-2497.82,0.00012191,2]
[347910375,1736194252599,-500.0,0.00012191,2]
[347910376,1736194252608,-1131.27,0.00012191,2]
[347910377,1736194252618,-783.53,0.00012191,2]
[347910378,1736194252627,-500.0,0.00012191,2]
[347910379,1736194252637,-1122.41,0.00012191,2]
[347910380,1736194252647,-627.67,0.00012191,2]
[347910381,1736194252657,-500.0,0.00012191,2]
[347910382,1736194252666,-559.8,0.00012191,2]
[347910383,1736194252675,-1640.73,0.00012191,2]
[347910384,1736194252684,-662.63,0.00012191,2]
[347910385,1736194252694,-500.0,0.00012191,2]
[347910386,1736194252703,-307.07,0.00012191,2]
[347910387,1736194252712,-966.65,0.00012191,2]
[347910388,1736194252721,-500.0,0.00012191,2]
[347910389,1736194252730,-500.0,0.00012191,2]
[347910390,1736194252739,-649.51,0.00012191,2]
[347910391,1736194252748,-1072.8,0.00012191,2]
[347910392,1736194252758,-500.0,0.00012191,2]
[347910393,1736194252767,-1141.05,0.00012191,2]
[347910394,1736194252776,-500.0,0.00012191,2]
[347910395,1736194252785,-500.0,0.00012191,2]
[347910396,1736194252795,-982.59,0.00012191,2]
[347910397,1736194252805,-500.0,0.00012191,2]
[347910398,1736194252816,-500.0,0.00012191,2]
[347910399,1736194252825,-500.0,0.00012191,2]
[347910400,1736194252834,-1986.1,0.00012191,2]
[347910401,1736194252844,-556.38,0.00012191,2]
[347910402,1736194252853,-2000.0,0.000122,2]
[347910403,1736194252863,-2000.0,0.000122,2]
[347910404,1736194252872,-2000.0,0.000122,2]
[347910405,1736194252882,-2000.0,0.000122,2]
[347910406,1736194252891,-2000.0,0.000122,2]
[347910407,1736194252901,-2000.0,0.000122,2]
[347910408,1736194252910,-2000.0,0.000122,2]
[347910409,1736194252920,-148757.36313585,0.000122,2]
[347910410,1736194252929,-2000.0,0.00012224,5]
[347910411,1736194252938,-910.47285199,0.00012228,2]
[347910412,1736194252947,-500.0,0.00012265,2]
[347910413,1736194252957,-703.43412811,0.0001227,2]
[347910414,1736194252966,-400.0,0.0001227,2]
[347910415,1736194252975,-157.67806234,0.00012271,10]
[347910416,1736194252984,-500.0,0.00012292,2]
[347910417,1736194252993,-150.05905066,0.00012292,2]
[347910418,1736194253003,-150.08576117,0.00012292,2]
[347910419,1736194253013,-500.0,0.00012292,2]
[347910420,1736194253022,-150.0,0.00012292,2]
[347910421,1736194253031,-500.0,0.00012292,2]
[347910422,1736194253040,-150.0,0.00012292,2]
[347910423,1736194253049,-150.0666842,0.00012292,2]
[347910424,1736194253058,-150.0,0.00012292,2]
[347910425,1736194253067,-150.0,0.00012292,2]
[347910426,1736194253076,-500.0,0.00012292,2]
[347910427,1736194253085,-150.0,0.00012292,2]
[347910428,1736194253095,-3706.0,0.00012292,2]
[347910429,1736194253104,-500.0,0.00012292,2]
[347910430,1736194253113,-1586.15969671,0.00012299,3]
[347910431,1736194253122,-2000.0,0.00012299,2]
[347910432,1736194253131,-2000.0,0.00012299,2]
[347910433,1736194253140,-2000.0,0.00012299,2]
[347910434,1736194253149,-4018013.48161161,0.000123,2]
[347910435,1736194253158,-4532072.03758579,0.000123,2]
[347910436,1736194253168,-11000637.530422,0.000123,2]